fUST/lending_fUST_20240819
["ID","MTS","AMOUNT","RATE_DAILY","PERIOD"]
[335272134,1724061040046,-500.0,0.00015712,7]
[335272135,1724061040056,-500.0,0.00015712,7]
[335272136,1724061040067,-500.0,0.00015712,7]
[335272137,1724061040077,-500.0,0.00015712,7]
[335272138,1724061040087,-500.0,0.00015712,7]
[335272139,1724061040097,-500.0,0.00015712,7]
[335272140,1724061040107,-500.0,0.00015712,7]
[335272141,1724061040116,-500.0,0.00015712,7]
[335272142,1724061040126,-500.0,0.00015712,7]
[335272143,1724061040135,-500.0,0.00015712,7]
[335272145,1724061040145,-500.0,0.00015712,7]
[335272147,1724061040156,-500.0,0.00015712,7]
[335272149,1724061040166,-500.0,0.00015712,7]
[335272151,1724061040176,-500.0,0.00015712,7]
[335272153,1724061040185,-500.0,0.00015712,7]
[335272155,1724061040195,-379.47,0.00015712,7]
[335272157,1724061040206,-358.190942,0.0001589,2]
[335272159,1724061040216,-171.283465,0.00015894,2]
[335272161,1724061040227,-150.0,0.00016,2]
[335272163,1724061040239,-4301.68192952,0.00016,2]
[335272165,1724061040249,-191.45061581,0.00016,2]
[335272167,1724061040263,-30754.43342455,0.00016,2]
[335272169,1724061040275,-247.98372407,0.00016,2]
[335272171,1724061040285,-600.0,0.00016044,2]
[335272173,1724061040296,-150.0,0.00016066,2]
[335272175,1724061040306,-4301.68192948,0.00016085,2]
[335272177,1724061040315,-47015.5173666,0.0001609,2]
[335272179,1724061040326,-38331.26870092,0.000161,2]
[335272182,1724061040338,-150.112233,0.000161,2]
[335272184,1724061040350,-150.112233,0.000161,2]
[335272186,1724061040362,-5097.57493884,0.000161,2]
[335272188,1724061040372,-4301.68192948,0.00016169,2]
[335272190,1724061040382,-150.0,0.00016197,2]
[335272192,1724061040393,-521.0,0.00016197,2]
[335272194,1724061040404,-1414.0,0.00016197,2]
[335272196,1724061040415,-150.0,0.00016197,2]
[335272197,1724061040424,-150.0,0.00016197,2]
[335272198,1724061040434,-4166.0,0.00016197,2]
[335272199,1724061040445,-4186.221,0.00016197,2]
[335272200,1724061040455,-150.112233,0.000162,2]
[335272201,1724061040466,-150.112233,0.000162,2]
[335272202,1724061040476,-150.112241,0.000162,2]
[335272203,1724061040486,-600.0,0.00016211,2]
[335272204,1724061040496,-4301.68192948,0.00016254,2]
[335272205,1724061040510,-184.989486,0.00016282,2]
[335272207,1724061040525,-175.306982,0.00016282,2]
[335272208,1724061040536,-171.283465,0.00016282,2]
[335272209,1724061040547,-1177.07010532,0.00016288,2]
[335272210,1724061040560,-155.46671401,0.00016288,2]
[335272211,1724061040570,-150.112233,0.000163,2]
[335272212,1724061040580,-150.112233,0.000163,2]
[335272213,1724061040590,-150.112233,0.000163,2]
[335272214,1724061040601,-47015.5173666,0.00016328,2]
[335272215,1724061040611,-1234.22537098,0.00016328,2]
[335272216,1724061040621,-2238.26428229,0.00016338,2]
[335272217,1724061040631,-4301.68192948,0.00016338,2]
[335272218,1724061040640,-8622.88601717,0.00016338,2]
[335272219,1724061040650,-243.0161,0.00016356,2]
[335272220,1724061040659,-600.0,0.00016378,2]
[335272221,1724061040668,-591.943647,0.000164,6]
[335272222,1724061040677,-150.112233,0.000164,2]
[335272223,1724061040687,-150.112233,0.000164,2]
[335272224,1724061040697,-966.772637,0.00016428,2]
[335272225,1724061040706,-151.0,0.00016428,2]
[335272226,1724061040716,-966.772637,0.00016428,2]
[335272227,1724061040725,-151.0,0.00016428,2]
[335272228,1724061040734,-151.0,0.00016428,2]
[335272229,1724061040744,-1441.354916,0.00016428,2]
[335272230,1724061040754,-1441.354916,0.00016428,2]
[335272231,1724061040767,-151.0,0.00016428,2]
[335272232,1724061040776,-151.0,0.00016428,2]
[335272233,1724061040785,-396.752583,0.00016428,2]
[335272234,1724061040795,-396.752583,0.00016428,2]
[335272235,1724061040804,-141046.5521,0.00016428,2]
[335272236,1724061040815,-203.66534114,0.00016437,2]
[335272237,1724061040825,-5993.21173941,0.00016437,2]
[335272238,1724061040834,-500.0,0.00016438,2]
[335272239,1724061040844,-1083.5,0.00016438,2]
[335272240,1724061040853,-510.53973325,0.00016438,2]
[335272241,1724061040862,-198.659333,0.00016438,2]
[335272242,1724061040872,-500.0,0.00016438,2]
[335272243,1724061040881,-505.12852149,0.00016438,2]
[335272244,1724061040891,-500.0,0.00016438,2]
[335272245,1724061040902,-500.0,0.00016438,2]
[335272246,1724061040912,-634.01,0.00016438,2]
[335272247,1724061040921,-151.216934,0.00016438,2]
[335272248,1724061040931,-500.0,0.00016438,2]
[335272249,1724061040940,-504.73448042,0.00016438,2]
[335272250,1724061040951,-504.42869075,0.00016438,2]
[335272251,1724061040961,-510.67819203,0.00016438,2]
[335272252,1724061040971,-500.0,0.00016438,2]
[335272253,1724061040980,-500.0,0.00016438,2]
[335272254,1724061040990,-541.48619213,0.00016438,2]
[335272255,1724061040999,-523.49821127,0.00016438,2]
[335272256,1724061041013,-502.96555615,0.00016438,2]
[335272257,1724061041022,-500.0,0.00016438,2]
[335272258,1724061041032,-500.0,0.00016438,2]
[335272259,1724061041041,-513.49845255,0.00016438,2]
[335272260,1724061041060,-616.48,0.00016438,2]
[335272261,1724061041071,-500.0,0.00016438,2]
[335272262,1724061041081,-500.0,0.00016438,2]
[335272263,1724061041092,-500.0,0.00016438,2]
[335272264,1724061041103,-500.0,0.00016438,2]
[335272265,1724061041113,-500.0,0.00016438,2]
[335272266,1724061041123,-500.0,0.00016438,2]
[335272267,1724061041133,-507.07062683,0.00016438,2]
[335272268,1724061041142,-518.21978141,0.00016438,2]
[335272269,1724061041152,-512.15497073,0.00016438,2]
[335272270,1724061041162,-151.0,0.00016438,2]
[335272271,1724061041172,-500.0,0.00016438,2]
[335272272,1724061041183,-500.0,0.00016438,2]
[335272273,1724061041194,-500.0,0.00016438,2]
[335272274,1724061041204,-500.0,0.00016438,2]
[335272275,1724061041215,-500.0,0.00016438,2]
[335272276,1724061041225,-618.11615069,0.00016438,2]
[335272277,1724061041235,-517.16092459,0.00016438,2]
[335272278,1724061041245,-500.0,0.00016438,2]
[335272279,1724061041255,-500.0,0.00016438,2]
[335272280,1724061041269,-500.0,0.00016438,2]
[335272281,1724061041279,-591.14,0.00016438,2]
[335272282,1724061041291,-500.0,0.00016438,2]
[335272283,1724061041301,-500.0,0.00016438,2]
[335272284,1724061041311,-500.0,0.00016438,2]
[335272285,1724061041321,-152.140415,0.00016438,2]
[335272286,1724061041332,-502.93309238,0.00016438,2]
[335272287,1724061041343,-506.49325263,0.00016438,2]
[335272288,1724061041353,-500.0,0.00016438,2]
[335272289,1724061041364,-500.0,0.00016438,2]
[335272290,1724061041374,-500.0,0.00016438,2]
[335272291,1724061041384,-500.0,0.00016438,2]
[335272292,1724061041393,-500.0,0.00016438,2]
[335272293,1724061041404,-500.0,0.00016438,2]
[335272294,1724061041414,-500.0,0.00016438,2]
[335272295,1724061041425,-500.0,0.00016438,2]
[335272296,1724061041435,-151.0,0.00016438,2]
[335272297,1724061041445,-215.36093509,0.00016438,2]
[335272298,1724061041455,-500.0,0.00016438,2]
[335272299,1724061041465,-500.0,0.00016438,2]
[335272300,1724061041474,-500.0,0.00016438,2]
[335272301,1724061041484,-500.0,0.00016438,2]
[335272302,1724061041494,-512.41210448,0.00016438,2]
[335272303,1724061041504,-507.65113548,0.00016438,2]
[335272304,1724061041520,-508.92258544,0.00016438,2]
[335272305,1724061041532,-500.0,0.00016438,2]
[335272306,1724061041542,-500.0,0.00016438,2]
[335272307,1724061041555,-500.0,0.00016438,2]
[335272308,1724061041565,-500.0,0.00016438,2]
[335272309,1724061041575,-599.12757295,0.00016438,2]
[335272310,1724061041584,-376.7369053,0.00016438,2]
[335272311,1724061041596,-500.0,0.00016438,2]
[335272312,1724061041607,-500.0,0.00016438,2]
[335272313,1724061041617,-500.0,0.00016438,2]
[335272314,1724061041627,-500.0,0.00016438,2]
[335272315,1724061041636,-500.0,0.00016438,2]
[335272316,1724061041647,-630.85,0.00016438,2]
[335272317,1724061041657,-513.8282815,0.00016438,2]
[335272318,1724061041667,-500.0,0.00016438,2]
[335272319,1724061041678,-500.0,0.00016438,2]
[335272320,1724061041688,-518.80318407,0.00016438,2]
[335272321,1724061041699,-500.0,0.00016438,2]
[335272322,1724061041711,-500.0,0.00016438,2]
[335272323,1724061041721,-500.0,0.00016438,2]
[335272324,1724061041731,-513.20828071,0.00016438,2]
[335272325,1724061041742,-500.0,0.00016438,2]
[335272326,1724061041753,-500.0,0.00016438,2]
[335272327,1724061041768,-500.0,0.00016438,2]
[335272328,1724061041778,-500.0,0.00016438,2]
[335272329,1724061041788,-200.0,0.00016438,2]
[335272330,1724061041797,-753.47,0.00016438,2]
[335272331,1724061041807,-500.0,0.00016438,2]
[335272332,1724061041816,-500.0,0.00016438,2]
[335272333,1724061041826,-500.0,0.00016438,2]
[335272334,1724061041835,-500.0,0.00016438,2]
[335272335,1724061041845,-504.74937411,0.00016438,2]
[335272336,1724061041854,-504.6364979,0.00016438,2]
[335272337,1724061041864,-758.25,0.00016438,2]
[335272338,1724061041875,-500.0,0.00016438,2]
[335272339,1724061041886,-500.0,0.00016438,2]
[335272340,1724061041904,-500.0,0.00016438,2]
[335272341,1724061041914,-500.0,0.00016438,2]
[335272342,1724061041927,-500.0,0.00016438,2]
[335272343,1724061041939,-500.0,0.00016438,2]
[335272344,1724061041950,-806.62,0.00016438,2]
[335272345,1724061041960,-500.0,0.00016438,2]
[335272346,1724061041971,-511.44218224,0.00016438,2]
[335272347,1724061041982,-506.66604033,0.00016438,2]
[335272348,1724061041995,-500.0,0.00016438,2]
[335272349,1724061042006,-781.91,0.00016438,2]
[335272350,1724061042018,-500.0,0.00016438,2]
[335272351,1724061042028,-500.0,0.00016438,2]
[335272352,1724061042038,-500.0,0.00016438,2]
[335272353,1724061042048,-500.0,0.00016438,2]
[335272354,1724061042057,-486.94354461,0.00016438,2]
[335272355,1724061042067,-500.0,0.00016438,2]
[335272356,1724061042077,-500.0,0.00016438,2]
[335272357,1724061042087,-500.0,0.00016438,2]
[335272358,1724061042099,-500.0,0.00016438,2]
[335272359,1724061042113,-1898.03,0.00016438,2]
[335272360,1724061042125,-500.0,0.00016438,2]
[335272361,1724061042137,-412.2194398,0.00016438,2]
[335272362,1724061042150,-992.95,0.00016438,2]
[335272363,1724061042160,-500.0,0.00016438,2]
[335272364,1724061042171,-506.37358524,0.00016438,2]
[335272365,1724061042355,-610.97,0.00016438,2]
[335272366,1724061042366,-263.16209233,0.00016438,2]
[335272367,1724061042376,-500.0,0.00016438,2]
[335272368,1724061042387,-411.61122609,0.00016438,2]
[335272369,1724061042398,-500.0,0.00016438,2]
[335272370,1724061042409,-500.0,0.00016438,2]
[335272371,1724061042419,-500.0,0.00016438,2]
[335272372,1724061042430,-500.0,0.00016438,2]
[335272373,1724061042440,-500.0,0.00016438,2]
[335272374,1724061042451,-500.0,0.00016438,2]
[335272375,1724061042462,-622.24,0.00016438,2]
[335272376,1724061042473,-500.0,0.00016438,2]
[335272377,1724061042484,-500.0,0.00016438,2]
[335272378,1724061042494,-500.0,0.00016438,2]
[335272379,1724061042503,-525.85,0.00016438,2]
[335272380,1724061042520,-519.29215306,0.00016438,2]
[335272381,1724061042529,-662.03,0.00016438,2]
[335272382,1724061042538,-500.0,0.00016438,2]
[335272383,1724061042547,-500.0,0.00016438,2]
[335272384,1724061042558,-500.0,0.00016438,2]
[335272385,1724061042567,-514.38428904,0.00016438,2]
[335272386,1724061042577,-500.0,0.00016438,2]
[335272387,1724061042588,-509.04117585,0.00016438,2]
[335272388,1724061042600,-500.0,0.00016438,2]
[335272389,1724061042610,-394.61914117,0.00016438,2]
[335272390,1724061042620,-878.87,0.00016438,2]
[335272391,1724061042630,-500.0,0.00016438,2]
[335272392,1724061042641,-500.0,0.00016438,2]
[335272394,1724061042651,-500.0,0.00016438,2]
[335272395,1724061042661,-532.12,0.00016438,2]
[335272396,1724061042671,-500.0,0.00016438,2]
[335272397,1724061042681,-502.22,0.00016438,2]
[335272398,1724061042693,-500.0,0.00016438,2]
[335272399,1724061042704,-505.55650891,0.00016438,2]
[335272400,1724061042715,-686.28,0.00016438,2]
[335272401,1724061042727,-500.0,0.00016438,2]
[335272402,1724061042739,-151.0,0.00016438,2]
[335272403,1724061042749,-500.0,0.00016438,2]
[335272405,1724061042763,-500.0,0.00016438,2]
[335272406,1724061042774,-500.0,0.00016438,2]
[335272407,1724061042783,-500.0,0.00016438,2]
[335272409,1724061042793,-500.0,0.00016438,2]
[335272410,1724061042802,-170.55211134,0.00016438,2]
[335272412,1724061042813,-500.0,0.00016438,2]
[335272414,1724061042823,-509.74200736,0.00016438,2]
[335272415,1724061042834,-510.98672459,0.00016438,2]
[335272416,1724061042844,-500.0,0.00016438,2]
[335272417,1724061042854,-1057.47,0.00016438,2]
[335272418,1724061042865,-504.88832304,0.00016438,2]
[335272419,1724061042874,-500.0,0.00016438,2]
[335272420,1724061042883,-500.0,0.00016438,2]
[335272422,1724061042892,-500.0,0.00016438,2]
[335272424,1724061042903,-500.0,0.00016438,2]
[335272426,1724061042915,-500.0,0.00016438,2]
[335272428,1724061042926,-500.0,0.00016438,2]
[335272429,1724061042937,-1425.62,0.00016438,2]
[335272430,1724061042947,-151.0,0.00016438,2]
[335272431,1724061042957,-151.0,0.00016438,2]
[335272433,1724061042967,-154.25959,0.00016438,2]
[335272435,1724061042977,-681.8,0.00016438,2]
[335272437,1724061042987,-749.88,0.00016438,2]
[335272440,1724061042997,-500.0,0.00016438,2]
[335272443,1724061043008,-500.0,0.00016438,2]
[335272444,1724061043017,-151.0,0.00016438,2]
[335272447,1724061043028,-151.0,0.00016438,2]
[335272449,1724061043037,-151.0,0.00016438,2]
[335272451,1724061043046,-151.0,0.00016438,2]
[335272453,1724061043056,-151.0,0.00016438,2]
[335272455,1724061043065,-500.0,0.00016438,2]
[335272457,1724061043074,-151.0,0.00016438,2]
[335272459,1724061043083,-500.0,0.00016438,2]
[335272461,1724061043093,-619.06,0.00016438,2]
[335272463,1724061043103,-592.88,0.00016438,2]
[335272465,1724061043112,-500.0,0.00016438,2]
[335272467,1724061043122,-500.0,0.00016438,2]
[335272469,1724061043132,-500.0,0.00016438,2]
[335272471,1724061043141,-500.0,0.00016438,2]
[335272473,1724061043151,-500.0,0.00016438,2]
[335272475,1724061043161,-500.0,0.00016438,2]
[335272477,1724061043171,-500.0,0.00016438,2]
[335272479,1724061043181,-557.54670441,0.00016438,2]
[335272481,1724061043193,-155.9040371,0.00016438,2]
[335272484,1724061043209,-196.24412175,0.00016438,2]
[335272486,1724061043225,-500.0,0.00016438,2]
[335272488,1724061043235,-589.05,0.00016438,2]
[335272491,1724061043246,-396.09400744,0.00016438,2]
[335272493,1724061043259,-504.13587495,0.00016438,2]
[335272495,1724061043269,-500.0,0.00016438,2]
[335272497,1724061043279,-500.0,0.00016438,2]
[335272499,1724061043290,-500.0,0.00016438,2]
[335272501,1724061043300,-685.45,0.00016438,2]
[335272503,1724061043310,-431.66523397,0.00016438,2]
[335272505,1724061043320,-500.0,0.00016438,2]
[335272507,1724061043330,-500.0,0.00016438,2]
[335272509,1724061043341,-500.0,0.00016438,2]
[335272511,1724061043351,-505.21757184,0.00016438,2]
[335272514,1724061043361,-699.72,0.00016438,2]
[335272516,1724061043371,-637.80882512,0.00016438,2]
[335272518,1724061043382,-500.0,0.00016438,2]
[335272520,1724061043392,-500.0,0.00016438,2]
[335272522,1724061043402,-435.74151973,0.00016438,2]
[335272524,1724061043413,-500.0,0.00016438,2]
[335272526,1724061043424,-500.0,0.00016438,2]
[335272528,1724061043436,-500.0,0.00016438,2]
[335272531,1724061043447,-662.9,0.00016438,2]
[335272533,1724061043457,-855.01,0.00016438,2]
[335272535,1724061043469,-985.95,0.00016438,2]
[335272537,1724061043481,-500.0,0.00016438,2]
[335272539,1724061043492,-175.99656324,0.00016438,2]
[335272551,1724061043745,-324.00343676,0.00016438,2]
[335272552,1724061043755,-500.0,0.00016438,2]
[335272553,1724061043766,-757.51,0.00016438,2]
[335272554,1724061043775,-500.0,0.00016438,2]
[335272555,1724061043785,-500.0,0.00016438,2]
[335272556,1724061043795,-500.0,0.00016438,2]
[335272557,1724061043805,-500.0,0.00016438,2]
[335272558,1724061043814,-500.0,0.00016438,2]
[335272559,1724061043823,-500.0,0.00016438,2]
[335272560,1724061043833,-500.0,0.00016438,2]
[335272561,1724061043843,-500.0,0.00016438,2]
[335272562,1724061043852,-696.6,0.00016438,2]
[335272563,1724061043862,-588.05284315,0.00016438,2]
[335272564,1724061043872,-500.0,0.00016438,2]
[335272565,1724061043881,-500.0,0.00016438,2]
[335272566,1724061043891,-500.0,0.00016438,2]
[335272567,1724061043901,-500.0,0.00016438,2]
[335272568,1724061043910,-500.0,0.00016438,2]
[335272569,1724061043920,-500.0,0.00016438,2]
[335272570,1724061043929,-870.13,0.00016438,2]
[335272571,1724061043938,-500.0,0.00016438,2]
[335272572,1724061043948,-500.0,0.00016438,2]
[335272573,1724061043958,-151.0,0.00016438,2]
[335272574,1724061043968,-500.0,0.00016438,2]
[335272575,1724061043978,-294.76367,0.00016438,2]
[335272576,1724061043989,-500.0,0.00016438,2]
[335272577,1724061043998,-500.0,0.00016438,2]
[335272578,1724061044009,-500.0,0.00016438,2]
[335272579,1724061044022,-500.0,0.00016438,2]
[335272580,1724061044032,-500.0,0.00016438,2]
[335272581,1724061044042,-559.75709588,0.00016438,2]
[335272582,1724061044051,-500.74909521,0.00016438,2]
[335272583,1724061044061,-500.0,0.00016438,2]
[335272584,1724061044071,-511.22040538,0.00016438,2]
[335272585,1724061044082,-500.0,0.00016438,2]
[335272586,1724061044093,-547.95,0.00016438,2]
[335272587,1724061044102,-500.0,0.00016438,2]
[335272588,1724061044112,-500.0,0.00016438,2]
[335272589,1724061044122,-500.0,0.00016438,2]
[335272590,1724061044131,-500.0,0.00016438,2]
[335272591,1724061044141,-500.0,0.00016438,2]
[335272592,1724061044151,-770.3,0.00016438,2]
[335272593,1724061044160,-500.0,0.00016438,2]
[335272594,1724061044169,-500.0,0.00016438,2]
[335272595,1724061044179,-716.85,0.00016438,2]
[335272596,1724061044188,-500.0,0.00016438,2]
[335272597,1724061044198,-500.0,0.00016438,2]
[335272598,1724061044208,-500.0,0.00016438,2]
[335272599,1724061044217,-500.0,0.00016438,2]
[335272600,1724061044227,-500.0,0.00016438,2]
[335272601,1724061044236,-500.0,0.00016438,2]
[335272602,1724061044245,-500.0,0.00016438,2]
[335272603,1724061044254,-500.0,0.00016438,2]
[335272604,1724061044265,-500.0,0.00016438,2]
[335272605,1724061044275,-674.01,0.00016438,2]
[335272606,1724061044284,-500.0,0.00016438,2]
[335272607,1724061044294,-500.0,0.00016438,2]
[335272608,1724061044303,-500.0,0.00016438,2]
[335272609,1724061044313,-500.0,0.00016438,2]
[335272610,1724061044322,-500.0,0.00016438,2]
[335272611,1724061044331,-500.0,0.00016438,2]
[335272612,1724061044341,-500.06,0.00016438,2]
[335272613,1724061044351,-500.0,0.00016438,2]
[335272614,1724061044361,-441.89795303,0.00016438,2]
[335272615,1724061044375,-72.08204697,0.00016438,2]
[335272616,1724061044385,-500.0,0.00016438,2]
[335272617,1724061044395,-500.0,0.00016438,2]
[335272618,1724061044404,-506.70761798,0.00016438,2]
[335272619,1724061044413,-500.0,0.00016438,2]
[335272620,1724061044423,-500.0,0.00016438,2]
[335272621,1724061044433,-500.0,0.00016438,2]
[335272622,1724061044442,-1000.0,0.00016438,2]
[335272623,1724061044452,-500.0,0.00016438,2]
[335272624,1724061044461,-500.0,0.00016438,2]
[335272625,1724061044471,-500.0,0.00016438,2]
[335272626,1724061044480,-348.75863628,0.00016438,2]
[335272627,1724061044489,-500.0,0.00016438,2]
[335272628,1724061044499,-503.76474957,0.00016438,2]
[335272629,1724061044512,-500.0,0.00016438,2]
[335272630,1724061044522,-500.0,0.00016438,2]
[335272631,1724061044532,-500.0,0.00016438,2]
[335272632,1724061044541,-495.23904285,0.00016438,2]
[335272633,1724061044552,-500.0,0.00016438,2]
[335272634,1724061044562,-500.0,0.00016438,2]
[335272635,1724061044571,-542.99514688,0.00016438,2]
[335272636,1724061044581,-500.0,0.00016438,2]
[335272637,1724061044590,-500.0,0.00016438,2]
[335272638,1724061044602,-500.0,0.00016438,2]
[335272639,1724061044612,-500.0,0.00016438,2]
[335272640,1724061044621,-500.0,0.00016438,2]
[335272641,1724061044630,-489.4289657,0.00016438,2]
[335272642,1724061044640,-500.0,0.00016438,2]
[335272643,1724061044649,-524.51,0.00016438,2]
[335272644,1724061044658,-508.69458066,0.00016438,2]
[335272645,1724061044667,-710.2,0.00016438,2]
[335272646,1724061044676,-500.0,0.00016438,2]
[335272647,1724061044686,-500.0,0.00016438,2]
[335272648,1724061044695,-502.79,0.00016438,2]
[335272649,1724061044705,-500.0,0.00016438,2]
[335272654,1724061044850,-640.15,0.00016438,2]
[335272656,1724061044861,-500.0,0.00016438,2]
[335272658,1724061044871,-756.70509,0.00016438,2]
[335272660,1724061044882,-756.70509,0.00016438,2]
[335272661,1724061044892,-500.0,0.00016438,2]
[335272662,1724061044902,-756.70509,0.00016438,2]
[335272663,1724061044912,-500.86823663,0.00016438,2]
[335272664,1724061044921,-500.0,0.00016438,2]
[335272665,1724061044930,-508.14560004,0.00016438,2]
[335272666,1724061044939,-500.0,0.00016438,2]
[335272667,1724061044949,-501.02611279,0.00016438,2]
[335272668,1724061044959,-500.0,0.00016438,2]
[335272669,1724061044968,-500.0,0.00016438,2]
[335272670,1724061044978,-526.31895576,0.00016438,2]
[335272671,1724061044987,-500.0,0.00016438,2]
[335272672,1724061044996,-500.0,0.00016438,2]
[335272673,1724061045006,-500.0,0.00016438,2]
[335272674,1724061045021,-500.0,0.00016438,2]
[335272675,1724061045030,-500.0,0.00016438,2]
[335272676,1724061045040,-500.0,0.00016438,2]
[335272677,1724061045050,-752.9,0.00016438,2]
[335272678,1724061045060,-500.0,0.00016438,2]
[335272679,1724061045070,-502.34974837,0.00016438,2]
[335272680,1724061045079,-648.33,0.00016438,2]
[335272681,1724061045088,-528.89768533,0.00016438,2]
[335272682,1724061045100,-500.0,0.00016438,2]
[335272683,1724061045109,-500.0,0.00016438,2]
[335272684,1724061045119,-500.0,0.00016438,2]
[335272685,1724061045128,-761.08,0.00016438,2]
[335272686,1724061045138,-500.0,0.00016438,2]
[335272687,1724061045147,-773.793143,0.00016438,2]
[335272688,1724061045157,-773.793143,0.00016438,2]
[335272689,1724061045167,-773.793143,0.00016438,2]
[335272690,1724061045176,-773.793143,0.00016438,2]
[335272691,1724061045186,-773.793143,0.00016438,2]
[335272692,1724061045195,-773.793143,0.00016438,2]
[335272693,1724061045205,-503.93529281,0.00016438,2]
[335272694,1724061045215,-500.0,0.00016438,2]
[335272695,1724061045225,-500.0,0.00016438,2]
[335272696,1724061045234,-500.0,0.00016438,2]
[335272697,1724061045243,-773.793143,0.00016438,2]
[335272698,1724061045254,-500.0,0.00016438,2]
[335272699,1724061045269,-773.793143,0.00016438,2]
[335272700,1724061045278,-773.793143,0.00016438,2]
[335272701,1724061045288,-773.793143,0.00016438,2]
[335272702,1724061045297,-7857.47,0.00016438,2]
[335272703,1724061045306,-773.793143,0.00016438,2]
[335272704,1724061045316,-7857.47,0.00016438,2]
[335272705,1724061045325,-500.0,0.00016438,2]
[335272706,1724061045334,-773.793143,0.00016438,2]
[335272707,1724061045343,-7857.47,0.00016438,2]
[335272708,1724061045354,-7857.47,0.00016438,2]
[335272709,1724061045364,-238.50368595,0.00016438,2]
[335272710,1724061045378,-498.66473456,0.00016438,2]
[335272711,1724061045705,-265.34329615,0.00013792,2]
[335272712,1724061045715,-7120.30157949,0.00016438,2]
[335272713,1724061045725,-7857.47,0.00016438,2]
[335272714,1724061045735,-7857.47,0.00016438,2]
[335272715,1724061045744,-7857.47,0.00016438,2]
[335272716,1724061045754,-7857.47,0.00016438,2]
[335272717,1724061045769,-7857.47,0.00016438,2]
[335272718,1724061045779,-7857.47,0.00016438,2]
[335272719,1724061045788,-7857.47,0.00016438,2]
[335272720,1724061045798,-7857.47,0.00016438,2]
[335272721,1724061045808,-7857.47,0.00016438,2]
[335272722,1724061045817,-7857.47,0.00016438,2]
[335272723,1724061045827,-7857.47,0.00016438,2]
[335272724,1724061045837,-7857.47,0.00016438,2]
[335272725,1724061045846,-7857.47,0.00016438,2]
[335272726,1724061045856,-500.0,0.00016438,2]
[335272728,1724061045866,-7857.47,0.00016438,2]
[335272731,1724061045875,-7857.47,0.00016438,2]
[335272734,1724061045885,-4643.01770727,0.00016438,2]
[335272737,1724061045902,-3214.45229273,0.00016438,2]
[335272739,1724061045911,-682.09,0.00016438,2]
[335272740,1724061045920,-1930.67069895,0.00016438,2]
[335272741,1724061045932,-5926.79930105,0.00016438,2]
[335272742,1724061045942,-4855.12647087,0.00016438,2]
[335272748,1724061046129,-2960.46850469,0.00016438,2]
[335272750,1724061046141,-41.87502444,0.00016438,2]
[335272752,1724061046150,-243.91453199,0.00016438,2]
[335272754,1724061046162,-1173.62115539,0.00016438,2]
[335272845,1724061939139,-1913.61353617,8.185e-05,2]
[335272846,1724061939162,-300.0,8.52e-05,2]
[335272847,1724061939185,-27320.54323271,8.521e-05,2]
[335272848,1724061939209,-4399.35775803,8.521e-05,2]
[335272849,1724061939231,-420.0,9.372e-05,2]
[335272850,1724061939254,-182.8808126,9.801e-05,2]
[335272851,1724061939277,-165.7578691,0.0001022,2]